fUSD/lending_fUSD_20251226
["ID","MTS","AMOUNT","RATE_DAILY","PERIOD"]
[399853605,1766747432287,-2389.94928522,0.000153,2]
[399853606,1766747432299,-625.72714476,0.000153,2]
[399853618,1766747438039,-646.48999974,0.000153,2]
[399853619,1766747438056,-443.26536606,0.000153,2]
[399853622,1766747438092,-392.59463394,0.000153,2]
[399853624,1766747438105,-26540.97871485,0.000153,2]
[399853625,1766747438203,-6371.0240971,0.000153,2]
[399853626,1766747438217,-1169.60571105,0.000153,2]
[399853627,1766747438230,-429.593164,0.000153,2]
[399853628,1766747438243,-6173.24549921,0.000153,2]
[399853629,1766747438256,-2178.00072333,0.000153,2]
[399853630,1766747438275,-781.76030096,0.000153,2]
[399853652,1766747440143,-3030.275,0.000153,2]
[399853654,1766747440156,-447.1571751,0.000153,2]
[399853664,1766747440303,-22989.30025605,0.000153,2]
[399853666,1766747440316,-375.32230847,0.000153,2]
[399853668,1766747440328,-4138.7968325,0.000153,2]
[399853670,1766747440340,-303.94,0.000153,2]
[399853672,1766747440353,-449.97448181,0.000153,2]
[399853674,1766747440365,-3816.26585088,0.000153,2]
[399853676,1766747440376,-1315.37849165,0.000153,2]
[399853688,1766747440518,-360.11324534,0.000153,2]
[399853689,1766747440529,-13851.02829593,0.000153,2]
[399853690,1766747440542,-29828.07915065,0.000153,2]
[399853691,1766747440553,-12971.61034677,0.000153,2]
[399853692,1766747440565,-14363.08807329,0.000153,2]
[399853693,1766747440578,-2334.80356846,0.000153,2]
[399853721,1766747444013,-39684.89639591,0.000153,2]
[399853722,1766747444026,-140409.6894717,0.000153,2]
[399853723,1766747444391,-908.811586,0.000153,2]
[399853724,1766747444404,-6855.90067227,0.000153,2]
[399853746,1766747446237,-908.69219449,0.000152,2]
[399853747,1766747446346,-3451.53933613,0.000152,2]
[399853748,1766747446356,-18566.82462258,0.000153,2]
[399853828,1766747855858,170.86,0.00010878,2]
[399853856,1766748139543,4141.809,0.0003013,120]
[399853874,1766748321884,200631.66,0.00030136,120]
[399853941,1766748632281,-569.59,0.00013699,2]
[399853942,1766748632291,-307.53727813,0.000143,2]
[399853943,1766748632302,-192.66,0.00014994,2]
[399853944,1766748632312,-250.0,0.00015068,2]
[399853945,1766748632323,-253.99539142,0.00015068,2]
[399853946,1766748632336,-324.33792878,0.00015068,2]
[399853947,1766748632347,-250.0,0.00015068,2]
[399853948,1766748632357,-333.68168469,0.00015068,2]
[399853949,1766748632368,-163.03184917,0.00015068,2]
[399853950,1766748632379,-3924.20837754,0.000151,2]
[399853951,1766748632390,-872.06,0.0001519,2]
[399853952,1766748632401,-872.06,0.0001519,2]
[399853953,1766748632413,-872.06,0.0001519,2]
[399853954,1766748632424,-872.06,0.0001519,2]
[399853955,1766748632436,-872.06,0.0001519,2]
[399853956,1766748632447,-1000.0,0.000152,2]
[399853957,1766748632457,-254184.3064082,0.000152,2]
[399853958,1766748632470,-1495.86696223,0.000152,2]
[399853959,1766748632485,-10132.08326007,0.000152,2]
[399853960,1766748632498,-2433.02114232,0.000152,2]
[399853979,1766748638280,-335.00823583,0.000152,2]
[399853980,1766748638389,-731419.71399135,0.000152,2]
[399853981,1766748638400,-1768.08,0.000152,2]
[399853982,1766748638411,-3924.20837751,0.000153,2]
[399853983,1766748638422,-3924.20837751,0.000155,2]
[399853984,1766748638431,-3924.20837751,0.000157,2]
[399853985,1766748638443,-3924.20837751,0.000159,2]
[399853986,1766748638454,-197.56929563,0.0001599,2]
[399853987,1766748638463,-178.75118812,0.00015999,2]
[399853988,1766748638473,-1618655.06967924,0.00016,4]
[399853989,1766748638501,-2666.23461432,0.00016,4]
[399853990,1766748638518,-126799.13248475,0.00016,4]
[399853991,1766748638531,-1992.83615203,0.00016,4]
[399853992,1766748638544,-1745.94017511,0.00016,4]
[399854091,1766748646269,-12208.5993913,0.00016,4]
[399854415,1766749350718,838.0,0.00030136,120]
[399854509,1766749748485,517.56830647,0.0001425,5]
[399854534,1766749831476,-154.128,0.00014896,2]
[399854535,1766749831486,-117.77786894,0.00014953,2]
[399854536,1766749831527,-44.08213106,0.00014953,2]
[399854537,1766749831540,-969.45,0.00014967,2]
[399854538,1766749831550,-1200.0,0.0001501,2]
[399854539,1766749831560,-300.0,0.0001501,2]
[399854540,1766749831570,-218.29965429,0.00015011,2]
[399854541,1766749831579,-1308.29024486,0.00015011,2]
[399854566,1766749837693,-671.46166085,0.00015011,2]
[399854567,1766749837706,-1339.3369012,0.00015011,2]
[399854591,1766749839840,-600.24273959,0.00015011,2]
[399854628,1766749843098,-2717.73072419,0.00015011,2]
[399854629,1766749843108,-2983.06933153,0.00015011,2]
[399854630,1766749843118,-40704.08757625,0.000151,2]
[399854631,1766749843130,-5366.39459187,0.000151,2]
[399854637,1766749845645,-296.79337137,0.000151,2]
[399854744,1766750403672,10195.09,0.0003013,120]
[399854855,1766751031540,-525.74328535,0.00013699,2]
[399854858,1766751031554,-15.36671465,0.00013699,2]
[399854860,1766751031564,-480.0,0.00014797,2]
[399854862,1766751031575,-842.34314743,0.00014798,2]
[399854863,1766751031587,-1257.02204758,0.00014798,2]
[399854864,1766751031600,-306.0,0.00014798,2]
[399854865,1766751031612,-1005.3639732,0.00014798,2]
[399854866,1766751031629,-500.0,0.00014798,2]
[399854867,1766751031645,-39.91645446,0.00014798,2]
[399854868,1766751031656,-154.128,0.00014798,2]
[399854869,1766751031666,-104.05810294,0.00014908,2]
[399854870,1766751031755,-95.94189706,0.00014908,2]
[399854871,1766751031766,-2684.76239835,0.00014911,2]
[399854872,1766751031776,-1100.66,0.00014926,2]
[399854873,1766751031786,-200.0,0.00014979,2]
[399854874,1766751031796,-1000.0,0.00014995,2]
[399854875,1766751031806,-323.58436542,0.00014999,2]
[399854876,1766751031817,-205.15595517,0.00014999,2]
[399854877,1766751031833,-5768.20008846,0.00014999,2]
[399854878,1766751031844,-150.0,0.00014999,2]
[399854879,1766751031853,-31071.10088598,0.00015,2]
[399854880,1766751031865,-398.97710426,0.00015,2]
[399854886,1766751037696,-302.69033,0.00015,2]
[399854887,1766751037750,-907.7574095,0.00015,2]
[399854963,1766751040207,-573.63214,0.00015,2]
[399854964,1766751040220,-5200.68821485,0.00015,2]
[399854965,1766751040233,-1269.9727187,0.00015,2]
[399854966,1766751040245,-755.43916622,0.00015,2]
[399854967,1766751040256,-30864.37590098,0.00015,2]
[399854968,1766751040273,-1951.7128846,0.00015,2]
[399854969,1766751040285,-2445.19113408,0.00015,2]
[399854970,1766751040296,-250.0,0.00015,2]
[399854971,1766751040308,-794.86329444,0.00015,2]
[399854972,1766751040320,-9322.37890921,0.00015,2]
[399854974,1766751045096,-11651.80731981,0.00015,2]
[399854975,1766751045150,-489259.97820883,0.00015,2]
[399854976,1766751045162,-7027.58690395,0.00015,2]
[399854977,1766751045206,-22985.00216024,0.00015,2]
[399854978,1766751045840,-400.0,0.00015,2]
[399854979,1766751045947,-22220.93962766,0.00015,2]
[399854980,1766751046056,-439.95547028,0.00015,2]
[399855111,1766751757558,-268.0,0.0001428,2]
[399855122,1766751811595,153.0,0.00030136,120]
[399855142,1766751952589,12000.0,0.00014,2]
[399855200,1766752231799,-166.66,0.0001428,2]
[399855201,1766752231810,-166.66,0.00014581,2]
[399855202,1766752231820,-224.88,0.00014771,2]
[399855203,1766752231830,-250.83930928,0.000148,2]
[399855204,1766752231841,-159.02185341,0.00014804,2]
[399855205,1766752231851,-300.0,0.00014809,2]
[399855206,1766752231861,-283.13631976,0.0001481,2]
[399855207,1766752231871,-3539.70339257,0.0001481,2]
[399855208,1766752231883,-1836.31704667,0.0001481,2]
[399855209,1766752231897,-1852.42,0.00014855,2]
[399855210,1766752231907,-166.66,0.00014882,2]
[399855211,1766752231917,-7006.77254458,0.000149,2]
[399855212,1766752231928,-2202.40451479,0.000149,2]
[399855213,1766752231940,-4751.0,0.000149,2]
[399855218,1766752237743,-2200.13048687,0.000149,2]
[399855219,1766752237798,-983839.69245376,0.000149,2]
[399855220,1766752237809,-3176.67,0.0001491,2]
[399855221,1766752237819,-999.0,0.00014912,3]
[399855222,1766752237830,-9999.99,0.00014912,2]
[399855223,1766752237840,-999.99,0.00014912,2]
[399855224,1766752237851,-150.99,0.00014912,2]
[399855225,1766752237861,-9999.99,0.00014912,2]
[399855226,1766752237872,-431.0,0.00014948,2]
[399855227,1766752237884,-785.1,0.00014999,2]
[399855228,1766752237894,-5454.65,0.00014999,2]
[399855229,1766752237905,-500.0,0.00014999,2]
[399855230,1766752237915,-500.0,0.00014999,2]
[399855231,1766752237928,-500.0,0.00014999,2]
[399855232,1766752237938,-10830.0899078,0.00015004,2]
[399855233,1766752237948,-156.4679304,0.00015004,2]
[399855234,1766752237960,-5376.02043922,0.00015042,2]
[399855235,1766752237973,-166.66,0.00015182,2]
[399855236,1766752237983,-5376.02043922,0.00015274,2]
[399855237,1766752237994,-150.0,0.00015288,2]
[399855238,1766752238006,-150.0,0.00015288,2]
[399855239,1766752238016,-150.0,0.00015288,2]
[399855240,1766752238028,-217.88182388,0.00015288,2]
[399855241,1766752238039,-150.0,0.00015288,2]
[399855242,1766752238049,-150.0,0.00015288,2]
[399855243,1766752238060,-150.0,0.00015288,2]
[399855244,1766752238071,-150.53428596,0.00015288,2]
[399855246,1766752238082,-150.0,0.00015288,2]
[399855248,1766752238092,-150.0,0.00015288,2]
[399855249,1766752238102,-150.0,0.00015288,2]
[399855250,1766752238112,-150.0,0.00015288,2]
[399855251,1766752238122,-150.0,0.00015288,2]
[399855252,1766752238132,-150.0,0.00015288,2]
[399855253,1766752238142,-150.0,0.00015288,2]
[399855254,1766752238152,-4692.0,0.00015333,2]
[399855255,1766752238162,-150.0,0.00015351,2]
[399855256,1766752238172,-150.0,0.00015373,2]
[399855257,1766752238182,-150.0,0.00015409,2]
[399855258,1766752238192,-150.0,0.00015413,2]
[399855259,1766752238202,-150.0,0.00015418,2]
[399855260,1766752238212,-500.0,0.00015418,2]
[399855261,1766752238222,-150.0,0.00015429,2]
[399855262,1766752238232,-150.0,0.00015442,2]
[399855263,1766752238242,-150.0,0.00015458,2]
[399855264,1766752238252,-150.0,0.00015476,2]
[399855265,1766752238262,-166.66,0.00015483,2]
[399855266,1766752238272,-5376.02043922,0.00015507,2]
[399855267,1766752238283,-1112.08,0.00015511,2]
[399855268,1766752238527,-949.77,0.00015522,2]
[399855269,1766752238538,-150.0,0.0001553,2]
[399855270,1766752238548,-152.0,0.00015534,2]
[399855271,1766752238558,-150.0,0.00015539,2]
[399855272,1766752238568,-150.0,0.00015542,2]
[399855273,1766752238578,-150.0,0.00015549,2]
[399855274,1766752238588,-150.0,0.00015571,2]
[399855275,1766752238598,-150.0,0.00015597,2]
[399855276,1766752238608,-150.0,0.00015602,2]
[399855277,1766752238619,-150.0,0.00015627,2]
[399855278,1766752238629,-150.0,0.00015627,2]
[399855279,1766752238639,-150.0,0.00015652,2]
[399855280,1766752238649,-150.0,0.00015665,2]
[399855281,1766752238659,-150.0,0.0001568,2]
[399855282,1766752238670,-510.36426481,0.00015692,2]
[399855283,1766752238680,-3366.4346691,0.00015694,2]
[399855284,1766752238690,-300.0,0.00015708,2]
[399855285,1766752238700,-7420.56,0.00015711,2]
[399855286,1766752238710,-150.0,0.00015712,2]
[399855287,1766752238719,-150.0,0.00015712,2]
[399855288,1766752238729,-150.0,0.00015712,2]
[399855289,1766752238739,-150.0,0.00015712,2]
[399855290,1766752238749,-150.0,0.00015728,2]
[399855291,1766752238760,-5376.02043922,0.00015739,2]
[399855292,1766752238774,-150.0,0.00015751,2]
[399855293,1766752238785,-150.0,0.00015773,2]
[399855294,1766752238795,-151.0,0.00015783,2]
[399855295,1766752238805,-166.66,0.00015784,2]
[399855296,1766752238815,-151.0,0.00015785,2]
[399855297,1766752238825,-151.0,0.00015787,2]
[399855298,1766752238835,-150.0,0.00015791,2]
[399855299,1766752238846,-150.0,0.00015797,2]
[399855300,1766752238855,-150.0,0.0001581,2]
[399855301,1766752238866,-500.0,0.00015829,2]
[399855302,1766752238877,-150.0,0.00015854,2]
[399855303,1766752238887,-150.0,0.00015854,2]
[399855304,1766752238898,-150.0,0.00015882,2]
[399855305,1766752238909,-150.0,0.00015894,2]
[399855306,1766752238919,-166.66,0.00015905,2]
[399855307,1766752238929,-150.0,0.00015905,2]
[399855308,1766752238939,-150.0,0.00015917,2]
[399855309,1766752238949,-150.0,0.00015941,2]
[399855310,1766752238959,-150.0,0.00015967,2]
[399855311,1766752238970,-150.0,0.00015967,2]
[399855312,1766752238981,-5376.02043922,0.00015971,2]
[399855313,1766752238991,-150.0,0.0001598,2]
[399855314,1766752239002,-197.56929563,0.0001599,2]
[399855315,1766752239012,-150.0,0.00015995,2]
[399855316,1766752239022,-1909766.85399619,0.00016,4]
[399855317,1766752239035,-458.41073756,0.00016,4]
[399855321,1766752240254,-853.42086176,0.00016,4]
[399855339,1766752243421,-2285.76885091,0.00016,4]
[399855340,1766752243433,-899.99,0.00016,4]
[399855341,1766752243476,-531.774,0.00016,4]
[399855342,1766752244238,-2045.39356299,0.00016,4]
[399855343,1766752244250,-834.90360017,0.00016,4]
[399855344,1766752244262,-1218.10437464,0.00016,4]
[399855360,1766752245717,-1000.0,0.00016,4]
[399855361,1766752245829,-553.29706463,0.00016,4]
[399855362,1766752245842,-1159.3,0.00016,4]
[399855443,1766752296582,449.14,0.00030137,120]
[399855444,1766752306740,-41132.0,0.000148,2]
[399855445,1766752307314,-55919.0,0.000148,2]
[399855446,1766752323412,-300.0,0.00014799,2]
[399855447,1766752323441,-49700.0,0.000148,2]
[399855448,1766752325239,-50000.0,0.000148,2]
[399855456,1766752327665,-2000.0,0.000148,2]
[399855461,1766752341063,-47416.0,0.000148,2]
[399855486,1766752629880,10000.0,0.00030137,120]
[399855561,1766753053939,383.0,0.00030137,120]
[399855733,1766753431965,-1000.0,0.00014353,2]
[399855734,1766753431976,-160.1,0.00014504,2]
[399855735,1766753431990,-1411.085,0.00014504,2]
[399855736,1766753432000,-184.182,0.00014504,2]
[399855737,1766753432011,-1200.0,0.00014584,2]
[399855738,1766753432022,-4239.50177088,0.00014585,2]
[399855739,1766753432032,-872.06,0.0001459,2]
[399855740,1766753432043,-872.06,0.0001459,2]
[399855741,1766753432054,-872.06,0.0001459,2]
[399855742,1766753432065,-872.06,0.0001459,2]
[399855743,1766753432076,-872.06,0.0001459,2]
[399855744,1766753432093,-300.0,0.00014598,2]
[399855745,1766753432103,-150.0,0.00014599,2]
[399855746,1766753432115,-1180.0,0.00014599,2]
[399855747,1766753432127,-322.2354513,0.00014599,2]
[399855748,1766753432138,-436.27542279,0.00014599,2]
[399855749,1766753432150,-500.0,0.00014599,2]
[399855750,1766753432160,-501.43030051,0.00014599,2]
[399855751,1766753432171,-500.0,0.00014599,2]
[399855752,1766753432182,-500.0,0.00014599,2]
[399855753,1766753432193,-500.0,0.00014599,2]
[399855755,1766753432203,-500.0,0.00014599,2]
[399855757,1766753432214,-417.33749278,0.00014599,2]
[399855758,1766753432225,-500.0,0.00014599,2]
[399855759,1766753432237,-500.0,0.00014599,2]
[399855760,1766753432248,-500.0,0.00014599,2]
[399855761,1766753432259,-500.0,0.00014599,2]
[399855762,1766753432269,-500.0,0.00014599,2]
[399855763,1766753432280,-320.01340703,0.00014599,2]
[399855764,1766753432291,-500.0,0.00014599,2]
[399855765,1766753432302,-500.0,0.00014599,2]
[399855766,1766753432312,-500.0,0.00014599,2]
[399855768,1766753432323,-500.0,0.00014599,2]
[399855770,1766753432334,-500.0,0.00014599,2]
[399855773,1766753432345,-500.0,0.00014599,2]
[399855774,1766753432356,-500.0,0.00014599,2]
[399855776,1766753432366,-500.0,0.00014599,2]
[399855778,1766753432377,-63178.75120168,0.000146,2]
[399855781,1766753432394,-262860.13946627,0.000146,2]
[399855783,1766753432408,-1516.8427369,0.000146,2]
[399855794,1766753432514,-1.5485,0.000146,2]
[399855839,1766753439323,-521.94481881,0.000146,2]
[399855840,1766753439436,-493.1268742,0.000146,2]
[399855841,1766753439449,-3761.29055628,0.000146,2]
[399855884,1766753440447,-720.70480241,0.000146,2]
[399855885,1766753440461,-3975.0117016,0.000146,2]
[399855886,1766753440473,-1599.31574393,0.000146,2]
[399855887,1766753440485,-7484.16,0.000146,2]
[399855888,1766753440497,-4823.69043218,0.000146,2]
[399855900,1766753443740,-372.14404724,0.00013699,2]
[399855901,1766753443753,-141.90595276,0.00013699,2]
[399855902,1766753443764,-452.36584508,0.000146,2]
[399855904,1766753443800,-3066.8121,0.000146,2]
[399855905,1766753443812,-1068.475,0.000146,2]
[399855906,1766753443823,-841.78985,0.000146,2]
[399855907,1766753443835,-2099.213705,0.000146,2]
[399855917,1766753446132,-3819.7999,0.000146,2]
[399855918,1766753446144,-1120.29316525,0.000146,2]
[399855919,1766753446155,-6698.48252141,0.000146,2]
[399855958,1766753599189,10000.0,0.00030137,120]
[399855959,1766753618614,2344.91,0.00030137,120]
[399855969,1766753703248,998.0,0.0003013,120]
[399856168,1766754179286,180.32884553,0.00012001,2]
[399856169,1766754179327,898.80160714,0.00012001,2]
[399856170,1766754179367,628.82939374,0.00012001,2]
[399856171,1766754179407,343.43717327,0.00012001,2]
[399856181,1766754288899,275.0,0.00030136,120]
[399856195,1766754573041,208.0,0.0003,120]
[399856205,1766754632027,-166.66,0.00013456,2]
[399856206,1766754632038,-339.21760029,0.00013639,2]
[399856207,1766754632048,-166.66,0.00013739,2]
[399856208,1766754632058,-166.66,0.00014022,2]
[399856209,1766754632069,-967.0283277,0.00014275,2]
[399856210,1766754632080,-66.45002501,0.00014306,2]
[399856211,1766754632093,-100.20997499,0.00014306,2]
[399856212,1766754632103,-154.79002506,0.00014556,2]
[399856213,1766754632115,-725.72997494,0.00014556,2]
[399856214,1766754632125,-999.0,0.00014586,3]
[399856215,1766754632135,-21.85942019,0.00014589,2]
[399856216,1766754632147,-144.80057981,0.00014589,2]
[399856217,1766754632157,-383.38033057,0.0001459,2]
[399856218,1766754632174,-629.50870027,0.0001459,2]
[399856219,1766754632187,-187.11096916,0.0001459,2]
[399856220,1766754632197,-150.0,0.0001459,2]
[399856221,1766754632207,-453.47,0.00014591,2]
[399856222,1766754632217,-151.0,0.00014591,2]
[399856223,1766754632226,-58.41903084,0.00014591,2]
[399856224,1766754632243,-92.58096916,0.00014591,2]
[399856225,1766754632252,-151.0,0.00014591,2]
[399856226,1766754632262,-151.0,0.00014591,2]
[399856227,1766754632272,-151.0,0.00014591,2]
[399856228,1766754632282,-151.0,0.00014591,2]
[399856229,1766754632292,-151.0,0.00014591,2]
[399856230,1766754632303,-151.0,0.00014591,2]
[399856232,1766754632313,-151.0,0.00014591,2]
[399856234,1766754632324,-151.0,0.00014591,2]
[399856236,1766754632333,-151.0,0.00014591,2]
[399856238,1766754632343,-151.0,0.00014591,2]
[399856239,1766754632352,-151.0,0.00014591,2]
[399856242,1766754632367,-151.0,0.00014591,2]
[399856244,1766754632377,-151.0,0.00014591,2]
[399856246,1766754632387,-151.0,0.00014591,2]
[399856248,1766754632396,-151.0,0.00014591,2]
[399856250,1766754632408,-151.0,0.00014591,2]
[399856252,1766754632419,-283.79223484,0.00014591,2]
[399856254,1766754632429,-200.0,0.00014597,2]
[399856256,1766754632439,-614.77943669,0.00014598,2]
[399856258,1766754632449,-500.0,0.00014598,2]
[399856260,1766754632459,-500.0,0.00014598,2]
[399856262,1766754632469,-500.0,0.00014598,2]
[399856264,1766754632480,-500.0,0.00014598,2]
[399856266,1766754632489,-500.0,0.00014598,2]
[399856267,1766754632499,-500.0,0.00014598,2]
[399856270,1766754632510,-390.84735931,0.00014598,2]
[399856272,1766754632523,-146.06193749,0.00014598,2]
[399856274,1766754632533,-1166.94782944,0.00014598,2]
[399856276,1766754632545,-90.00017056,0.00014598,2]
[399856278,1766754632555,-184.183,0.00014598,2]
[399856280,1766754632566,-8165.8177214,0.00014599,2]
[399856282,1766754632578,-6164.60637615,0.00014599,2]
[399856284,1766754632590,-612.77648014,0.00014599,2]
[399856287,1766754638260,-54472.87436371,0.00014599,2]
[399856288,1766754638270,-167.6049133,0.00014599,2]
[399856289,1766754638281,-500.0,0.00014599,2]
[399856290,1766754638291,-500.0,0.00014599,2]
[399856291,1766754638302,-500.0,0.00014599,2]
[399856292,1766754638312,-150.0,0.00014685,2]
[399856293,1766754638322,-1300.0,0.000147,2]
[399856294,1766754638332,-1183.26214685,0.00014772,2]
[399856295,1766754638345,-925.95049787,0.00014772,2]
[399856296,1766754638358,-240.82355528,0.00014772,2]
[399856297,1766754638368,-259.96215707,0.00014772,2]
[399856323,1766754640243,-1351.47264379,0.00014772,2]
[399856331,1766754643804,-25952.20533135,0.00014772,2]
[399856340,1766754646180,-2219.4560495,0.00014772,2]
[399856341,1766754646344,-590.55552,0.00014772,2]
[399856381,1766755017421,540.18214,0.0003013,120]
[399856451,1766755521082,163.97800305,0.00014,3]
[399856472,1766755560366,10331.55762494,8e-05,2]
[399856510,1766755623875,611.68615375,0.000226,120]
[399856545,1766755832194,-184.183,0.00014379,2]
[399856546,1766755832206,-300.0,0.00014379,2]
[399856547,1766755832217,-1005.558,0.00014379,2]
[399856548,1766755832227,-200.0,0.00014502,2]
[399856549,1766755832237,-137.18064788,0.00014559,2]
[399856550,1766755832251,-418.85935212,0.00014559,2]
[399856551,1766755832262,-703.59157636,0.00014572,2]
[399856552,1766755832275,-299.06715887,0.00014572,2]
[399856553,1766755832307,-3753.07156661,0.00014572,2]
[399856554,1766755832319,-4174.76394407,0.00014572,2]
[399856558,1766755832649,-279.93916795,0.00014572,2]
[399856559,1766755832668,-834.98957114,0.00014572,2]
[399856560,1766755832680,-5497.32119389,0.00014572,2]
[399856561,1766755838321,-4758.96052111,0.00014572,2]
[399856562,1766755838332,-1043.1454,0.00014572,2]
[399856563,1766755838342,-2500.0,0.00014572,2]
[399856564,1766755838352,-7482.43226695,0.0001459,2]
[399856565,1766755838362,-2955.7181221,0.0001465,2]
[399856566,1766755838374,-287.85767453,0.00014671,2]
[399856567,1766755838383,-392.98992187,0.00014671,2]
[399856568,1766755838394,-514.2023274,0.00014672,2]
[399856569,1766755838404,-1000000.0,0.00014672,2]
[399856570,1766755838415,-159.02185341,0.0001469,2]
[399856571,1766755838426,-98011.85270763,0.000147,2]
[399856572,1766755838436,-163.85,0.0001479,2]
[399856573,1766755838446,-7482.43226692,0.00014847,2]
[399856574,1766755838456,-166.66,0.00014872,2]
[399856575,1766755838467,-226.71743608,0.000149,2]
[399856576,1766755838478,-795.1232334,0.00015,14]
[399856577,1766755838489,-500.0,0.000151,2]
[399856578,1766755838499,-500.0,0.000151,2]
[399856579,1766755838509,-500.0,0.000151,2]
[399856580,1766755838520,-500.0,0.000151,2]
[399856581,1766755838530,-500.0,0.000151,2]
[399856582,1766755838540,-500.0,0.000151,2]
[399856584,1766755838550,-500.0,0.000151,2]
[399856585,1766755838560,-500.0,0.000151,2]
[399856586,1766755838570,-500.0,0.000151,2]
[399856587,1766755838581,-500.0,0.000151,2]
[399856588,1766755838591,-250.0,0.000151,2]
[399856589,1766755838601,-500.0,0.000151,2]
[399856590,1766755838612,-250.0,0.000151,2]
[399856591,1766755838622,-250.0,0.000151,2]
[399856592,1766755838631,-500.0,0.000151,2]
[399856593,1766755838641,-250.0,0.000151,2]
[399856594,1766755838651,-500.0,0.000151,2]
[399856596,1766755838661,-250.0,0.000151,2]
[399856599,1766755838675,-500.0,0.000151,2]
[399856601,1766755838684,-250.0,0.000151,2]
[399856602,1766755838694,-500.0,0.000151,2]
[399856603,1766755838704,-250.0,0.000151,2]
[399856604,1766755838715,-500.0,0.000151,2]
[399856605,1766755838725,-250.0,0.000151,2]
[399856606,1766755838735,-500.0,0.000151,2]
[399856607,1766755838745,-250.0,0.000151,2]
[399856608,1766755838755,-500.0,0.000151,2]
[399856609,1766755838765,-250.0,0.000151,2]
[399856610,1766755838776,-500.0,0.000151,2]
[399856611,1766755838786,-500.0,0.000151,2]
[399856612,1766755838796,-250.0,0.000151,2]
[399856613,1766755838806,-500.0,0.000151,2]
[399856614,1766755838817,-500.0,0.000151,2]
[399856615,1766755838827,-500.0,0.000151,2]
[399856616,1766755838837,-500.0,0.000151,2]
[399856617,1766755838847,-500.0,0.000151,2]
[399856618,1766755838858,-500.0,0.000151,2]
[399856619,1766755838868,-500.0,0.000151,2]
[399856620,1766755838879,-500.0,0.000151,2]
[399856621,1766755838888,-500.0,0.000151,2]
[399856622,1766755838897,-500.0,0.000151,2]
[399856623,1766755838907,-500.0,0.000151,2]
[399856624,1766755838916,-299.79453,0.000151,2]
[399856625,1766755838926,-7482.43226692,0.00015103,2]
[399856626,1766755838936,-3547.0,0.00015156,2]
[399856627,1766755838949,-150.0,0.00015288,2]
[399856628,1766755838959,-150.0,0.00015288,2]
[399856629,1766755838970,-150.0,0.00015288,2]
[399856630,1766755838980,-150.0,0.00015288,2]
[399856631,1766755838990,-150.0,0.00015288,2]
[399856632,1766755839000,-150.0,0.00015288,2]
[399856633,1766755839010,-150.0,0.00015288,2]
[399856634,1766755839024,-150.0,0.00015288,2]
[399856635,1766755839039,-150.0,0.00015288,2]
[399856636,1766755839050,-150.0,0.00015288,2]
[399856637,1766755839060,-150.0,0.00015288,2]
[399856638,1766755839070,-7482.43226692,0.0001536,2]
[399856639,1766755839081,-510.36426481,0.00015374,2]
[399856640,1766755839091,-362.77,0.00015397,2]
[399856641,1766755839101,-150.0,0.00015401,2]
[399856642,1766755839111,-25500.13,0.00015406,2]
[399856643,1766755839121,-150.0,0.00015442,2]
[399856644,1766755839131,-150.0,0.000155,2]
[399856645,1766755839141,-170.22,0.00015513,2]